[Event "77th Tata Steel Chess Masters"]
[Site "Wijk aan Zee"]
[Date "2015.01.18"]
[Round "8"]
[White "Jobava, Baadur"]
[Black "Carlsen, Magnus"]
[Result "0-1"]
[ECO "A01"]
[WhiteElo "2727"]
[BlackElo "2862"]
[PlyCount "99"]
[EventDate "2015.??.??"]
[EventCountry "NED"]
[TimeControl "40/6000+30:20/3000+30:900+30"]

1. b3 {[%emt 0:00:00]} g6 {[%emt 0:00:27]} 2. Bb2 {[%emt 0:00:00]} Nf6 {[%emt
0:00:05]} 3. Nc3 {[%emt 0:00:07]} Bg7 {237} 4. d4 {[%emt 0:00:40]} c5 {116} 5.
e3 {[%emt 0:00:17]} cxd4 {112} 6. exd4 {[%emt 0:00:06]} d5 {[%emt 0:00:42]} 7.
Qd2 {[%emt 0:00:13]} Nc6 {[%emt 0:00:39]} 8. f3 {[%emt 0:00:37]} h5 {[%emt 0:
00:48]} 9. Bb5 {501} Qd6 {271} 10. Nge2 {860} Bh6 {197} 11. Qd1 {[%emt 0:00:05]
} Bf5 {386} 12. Bc1 {[%emt 0:00:21]} Bxc1 {[%emt 0:00:34]} 13. Rxc1 {[%emt 0:
00:37]} Rc8 {73} 14. Qd2 {[%emt 0:00:26]} O-O {672} 15. Bxc6 {103} bxc6 {935}
16. Na4 {[%emt 0:00:09]} Rfe8 {[%emt 0:00:55]} 17. O-O {77} e5 {[%emt 0:00:42]}
18. c3 {[%emt 0:00:32]} h4 {153} 19. dxe5 {258} Rxe5 {271} 20. b4 {[%emt 0:00:
03]} Rce8 {348} 21. Nd4 {[%emt 0:00:08]} h3 {372} 22. g3 {580} Bc8 {97} 23. Nc5
{71} Nd7 {69} 24. Nd3 {83} R5e7 {[%emt 0:00:40]} 25. Rfe1 {109} c5 {412} 26.
bxc5 {[%emt 0:00:10]} Nxc5 {[%emt 0:00:07]} 27. Nf4 {460} Rxe1+ {134} 28. Rxe1
{[%emt 0:00:05]} Rxe1+ {[%emt 0:00:09]} 29. Qxe1 {[%emt 0:00:05]} Ne6 {[%emt 0:
00:08]} 30. Nfxe6 {525} Bxe6 {[%emt 0:00:14]} 31. Kf2 {[%emt 0:00:09]} Bd7 {
[%emt 0:00:34]} 32. Qb1 {131} Qc7 {289} 33. Qb3 {71} Bc8 {84} 34. a3 {335} a5 {
70} 35. Qb2 {75} Ba6 {[%emt 0:00:30]} 36. Nc2 {328} Qa7+ {644} 37. Ne3 {[%emt
0:00:16]} Bc4 {[%emt 0:00:37]} 38. f4 {78} Kh7 {209} 39. g4 {303} Qe7 {113} 40.
Qc1 {[%emt 0:00:00]} Qe4 {[%emt 0:00:00]} 41. f5 {562} Qf4+ {353} 42. Kg1 {
[%emt 0:00:03]} gxf5 {376} 43. gxf5 {[%emt 0:00:03]} Bd3 {200} 44. Qe1 {490}
Bxf5 {[%emt 0:00:27]} 45. Nxf5 {771} Qxf5 {[%emt 0:00:08]} 46. Qg3 {[%emt 0:00:
26]} Kh6 {[%emt 0:00:34]} 47. Qb8 {[%emt 0:00:04]} Qf3 {213} 48. Qh8+ {[%emt 0:
00:05]} Kg6 {[%emt 0:00:49]} 49. Qg8+ {[%emt 0:00:06]} Kf6 {60} 50. Qd8+ {
[%emt 0:00:18]} 0-1

[Event "77th Tata Steel Chess Masters"]
[Site "Wijk aan Zee"]
[Date "2015.01.18"]
[Round "8"]
[White "Ding, Liren"]
[Black "Saric, Ivan"]
[Result "1-0"]
[ECO "D11"]
[WhiteElo "2732"]
[BlackElo "2666"]
[PlyCount "67"]
[EventDate "2015.??.??"]
[EventCountry "NED"]
[TimeControl "40/6000+30:20/3000+30:900+30"]

1. d4 {[%emt 0:00:00]} d5 {[%emt 0:00:00]} 2. c4 {[%emt 0:00:00]} c6 {[%emt 0:
00:00]} 3. Nf3 {[%emt 0:00:00]} Nf6 {[%emt 0:00:00]} 4. e3 {[%emt 0:00:00]} Bg4
{[%emt 0:00:04]} 5. Qb3 {[%emt 0:00:00]} Qb6 {[%emt 0:00:21]} 6. Nc3 {[%emt 0:
00:05]} e6 {[%emt 0:00:04]} 7. Nh4 {[%emt 0:00:04]} Bh5 {[%emt 0:00:50]} 8. h3
{[%emt 0:00:22]} Be7 {172} 9. g4 {94} Bg6 {[%emt 0:00:05]} 10. Nxg6 {70} hxg6 {
[%emt 0:00:04]} 11. Bg2 {[%emt 0:00:11]} g5 {249} 12. O-O {488} Nbd7 {172} 13.
Rd1 {[%emt 0:00:47]} Rd8 {962} 14. cxd5 {667} exd5 {191} 15. Qc2 {[%emt 0:00:
59]} Nf8 {80} 16. e4 {85} Ne6 {121} 17. Be3 {832} Kf8 {514} 18. e5 {737} Nh7 {
[%emt 0:00:56]} 19. b4 {403} Kg8 {193} 20. b5 {[%emt 0:00:48]} Nf4 {570} 21.
Bxf4 {137} gxf4 {[%emt 0:00:05]} 22. bxc6 {[%emt 0:00:03]} Qxc6 {540} 23. Qb3 {
196} f3 {[%emt 0:00:48]} 24. Bxf3 {[%emt 0:00:33]} Ng5 {[%emt 0:00:05]} 25. Bg2
{68} Nxh3+ {1692} 26. Bxh3 {[%emt 0:00:07]} Rxh3 {[%emt 0:00:23]} 27. Nxd5 {
[%emt 0:00:13]} Qxd5 {[%emt 0:00:43]} 28. Qxh3 {[%emt 0:00:07]} Qe4 {[%emt 0:
00:06]} 29. Rac1 {301} Bg5 {[%emt 0:00:07]} 30. Rc3 {286} Bf4 {156} 31. Qd3 {
108} Qd5 {[%emt 0:00:24]} 32. Qf5 {151} Bxe5 {75} 33. Rc8 {[%emt 0:00:29]} f6 {
104} 34. Rdc1 {[%emt 0:00:24]} 1-0

[Event "77th Tata Steel Chess Masters"]
[Site "Wijk aan Zee"]
[Date "2015.01.18"]
[Round "8"]
[White "Hou, Yifan"]
[Black "Aronian, Levon"]
[Result "1/2-1/2"]
[ECO "C54"]
[WhiteElo "2673"]
[BlackElo "2797"]
[PlyCount "109"]
[EventDate "2015.??.??"]
[EventCountry "NED"]
[TimeControl "40/6000+30:20/3000+30:900+30"]

1. e4 e5 {[%emt 0:00:00]} 2. Nf3 {[%emt 0:00:00]} Nc6 {[%emt 0:00:00]} 3. Bc4 {
[%emt 0:00:00]} Bc5 {[%emt 0:00:01]} 4. c3 {[%emt 0:00:58]} Nf6 {[%emt 0:00:38]
} 5. d4 {[%emt 0:00:29]} exd4 {[%emt 0:00:08]} 6. cxd4 {[%emt 0:00:05]} Bb4+ {
[%emt 0:00:05]} 7. Bd2 {[%emt 0:00:05]} Nxe4 {[%emt 0:00:18]} 8. Bxb4 Nxb4 {
[%emt 0:00:05]} 9. Bxf7+ {[%emt 0:00:21]} Kxf7 {[%emt 0:00:05]} 10. Qb3+ {
[%emt 0:00:05]} d5 {[%emt 0:00:08]} 11. Ne5+ {[%emt 0:00:07]} Ke6 12. Qxb4 {
[%emt 0:00:08]} Qf8 {[%emt 0:00:28]} 13. Qxf8 {[%emt 0:00:30]} Rxf8 {[%emt 0:
00:05]} 14. f3 {623} Ng5 {224} 15. Nc3 c6 16. h4 {595} Nf7 {[%emt 0:00:34]} 17.
Nd3 {[%emt 0:00:12]} Kd6 {102} 18. Kf2 {118} Nd8 {[%emt 0:00:37]} 19. g3 {717}
Ne6 {408} 20. Ne2 {224} a5 {[%emt 0:00:02]} 21. Ndf4 {205} Ra6 {[%emt 0:00:18]}
22. Rad1 {[%emt 0:00:45]} Rb6 {[%emt 0:00:34]} 23. Rd2 {[%emt 0:00:36]} Rb4 {
[%emt 0:00:16]} 24. Re1 {350} Nxf4 {862} 25. Nxf4 {[%emt 0:00:10]} Rc4 {[%emt
0:00:16]} 26. a3 {492} Bf5 {[%emt 0:00:58]} 27. Re3 {573} b6 {331} 28. Rb3 {661
} b5 {479} 29. Re3 {[%emt 0:00:45]} b4 {[%emt 0:00:38]} 30. Ne2 {123} h5 {242}
31. Ke1 {535} g6 {319} 32. b3 {576} Rc2 {[%emt 0:00:34]} 33. Rxc2 {[%emt 0:00:
05]} Bxc2 {[%emt 0:00:05]} 34. a4 {[%emt 0:00:14]} Bf5 {1009} 35. Nf4 {92} Rc8
{121} 36. Kd2 {279} c5 {302} 37. Re5 {[%emt 0:00:14]} cxd4 {[%emt 0:00:30]} 38.
Rxd5+ {[%emt 0:00:05]} Ke7 {[%emt 0:00:05]} 39. g4 hxg4 {111} 40. fxg4 {[%emt
0:00:00]} Bxg4 {[%emt 0:00:00]} 41. Nxg6+ {771} Kf6 {336} 42. Rxd4 {474} Be6 {
394} 43. Rd6 {158} Kf7 {[%emt 0:00:08]} 44. Ne5+ {[%emt 0:00:33]} Ke7 {[%emt 0:
00:05]} 45. Rd3 {289} Kf6 {60} 46. Nf3 {278} Bg8 {[%emt 0:00:58]} 47. Ng5 {237}
Kf5 {[%emt 0:00:55]} 48. Nf3 {120} Kf6 {[%emt 0:00:38]} 49. h5 {284} Rc5 {117}
50. h6 {[%emt 0:00:06]} Rh5 {95} 51. Rd6+ {124} Ke7 {[%emt 0:00:18]} 52. Ra6 {
[%emt 0:00:20]} Bxb3 {172} 53. h7 {[%emt 0:00:24]} Bxa4 {[%emt 0:00:32]} 54.
Rxa5 {336} Rxh7 {[%emt 0:00:05]} 55. Rxa4 1/2-1/2

[Event "77th Tata Steel Chess Masters"]
[Site "Wijk aan Zee"]
[Date "2015.01.18"]
[Round "8"]
[White "Ivanchuk, Vasil"]
[Black "So, Wesley"]
[Result "0-1"]
[ECO "C88"]
[WhiteElo "2715"]
[BlackElo "2762"]
[PlyCount "52"]
[EventDate "2015.??.??"]
[EventCountry "NED"]
[TimeControl "40/6000+30:20/3000+30:900+30"]

1. e4 {[%emt 0:00:00]} e5 {[%emt 0:00:00]} 2. Nf3 {[%emt 0:00:00]} Nc6 {[%emt
0:00:00]} 3. Bb5 {[%emt 0:00:00]} a6 {[%emt 0:00:00]} 4. Ba4 {[%emt 0:00:07]}
Nf6 {[%emt 0:00:00]} 5. O-O {[%emt 0:00:07]} Be7 {[%emt 0:00:00]} 6. Re1 {
[%emt 0:00:05]} b5 {[%emt 0:00:00]} 7. Bb3 {[%emt 0:00:06]} O-O {[%emt 0:00:00]
} 8. h3 {[%emt 0:00:04]} Bb7 {[%emt 0:00:00]} 9. d3 {[%emt 0:00:06]} d5 {[%emt
0:00:00]} 10. exd5 {[%emt 0:00:06]} Nxd5 {[%emt 0:00:00]} 11. Nbd2 {[%emt 0:00:
06]} Qd7 {[%emt 0:00:17]} 12. Nxe5 {[%emt 0:00:31]} Nxe5 {[%emt 0:00:27]} 13.
Rxe5 {[%emt 0:00:01]} Nf4 {[%emt 0:00:01]} 14. Nf3 {541} Nxg2 {[%emt 0:00:08]}
15. Kxg2 {251} a5 {[%emt 0:00:06]} 16. Rxe7 {1438} Qxe7 {[%emt 0:00:05]} 17. c3
{[%emt 0:00:03]} Ra6 {127} 18. d4 {[%emt 0:00:08]} Rf6 {1160} 19. d5 {1165} a4
{[%emt 0:00:15]} 20. Bc2 {[%emt 0:00:02]} Rd8 {[%emt 0:00:18]} 21. Qe1 {[%emt
0:00:05]} Qd7 {[%emt 0:00:06]} 22. Ng5 {328} h6 {1280} 23. Ne4 {[%emt 0:00:09]}
Rg6+ {[%emt 0:00:05]} 24. Kh2 {[%emt 0:00:04]} f5 {[%emt 0:00:02]} 25. Ng3 {
[%emt 0:00:17]} Qxd5 {74} 26. Qg1 {[%emt 0:00:23]} Qf3 {927} 0-1

[Event "77th Tata Steel Chess Masters"]
[Site "Wijk aan Zee"]
[Date "2015.01.18"]
[Round "8"]
[White "Radjabov, Teimour"]
[Black "Wojtaszek, Radoslaw"]
[Result "1-0"]
[ECO "B90"]
[WhiteElo "2734"]
[BlackElo "2744"]
[PlyCount "117"]
[EventDate "2015.??.??"]
[EventCountry "NED"]
[TimeControl "40/6000+30:20/3000+30:900+30"]

1. e4 {[%emt 0:00:00]} c5 {[%emt 0:00:00]} 2. Nf3 {[%emt 0:00:00]} d6 {[%emt 0:
00:00]} 3. d4 {[%emt 0:00:00]} cxd4 {[%emt 0:00:00]} 4. Nxd4 {[%emt 0:00:00]}
Nf6 {[%emt 0:00:00]} 5. Nc3 {[%emt 0:00:05]} a6 {[%emt 0:00:00]} 6. h3 {[%emt
0:00:06]} e5 {[%emt 0:00:04]} 7. Nde2 {[%emt 0:00:07]} b5 {[%emt 0:00:08]} 8.
Bg5 {833} Nbd7 {[%emt 0:00:10]} 9. Nd5 {125} Bb7 {[%emt 0:00:10]} 10. Nec3 {564
} Rc8 {[%emt 0:00:33]} 11. Nxf6+ {1519} Nxf6 {357} 12. a4 {96} b4 {301} 13. Nd5
{178} Be7 {2020} 14. Bxf6 {101} Bxf6 {64} 15. Nxb4 {151} O-O {915} 16. c3 {239}
Bxe4 {344} 17. Bxa6 {88} Rc5 {109} 18. O-O {137} Ba8 {[%emt 0:00:05]} 19. Re1 {
442} d5 {191} 20. Bf1 {576} e4 {129} 21. Nc2 {115} Be5 {[%emt 0:00:10]} 22. Nd4
{76} Bb8 {96} 23. g3 {110} Qb6 {610} 24. Qe2 {442} Rcc8 {492} 25. a5 {[%emt 0:
00:24]} Qg6 {[%emt 0:00:40]} 26. Qg4 {163} Qh6 {99} 27. h4 {243} Kh8 {322} 28.
Qg5 {[%emt 0:00:59]} Qd6 {68} 29. Nf5 {232} Qe5 {[%emt 0:00:08]} 30. f4 {250}
h6 {[%emt 0:00:06]} 31. Qxh6+ {[%emt 0:00:33]} gxh6 {[%emt 0:00:05]} 32. fxe5 {
[%emt 0:00:04]} Bxe5 {[%emt 0:00:06]} 33. Be2 {75} Rb8 {75} 34. Ra2 {[%emt 0:
00:09]} Kh7 {254} 35. Rd1 {[%emt 0:00:56]} Rb3 {325} 36. Kf2 {[%emt 0:00:43]}
Rfb8 {[%emt 0:00:44]} 37. Rd2 {[%emt 0:00:05]} Kg6 {64} 38. Ne7+ {82} Kf6 {
[%emt 0:00:44]} 39. Nxd5+ {[%emt 0:00:17]} Bxd5 {[%emt 0:00:06]} 40. Rxd5 {
[%emt 0:00:00]} Rxb2 {[%emt 0:00:00]} 41. Rxb2 {760} Rxb2 {[%emt 0:00:22]} 42.
Ke3 {184} Bxg3 {1277} 43. a6 {994} Bh2 {200} 44. Bc4 {90} Rc2 {388} 45. Kxe4 {
144} Rxc3 {[%emt 0:00:05]} 46. Rf5+ {[%emt 0:00:18]} Kg7 {231} 47. Rxf7+ {228}
Kg6 {[%emt 0:00:03]} 48. Bd5 {305} Bg1 {[%emt 0:00:05]} 49. Rf1 {558} Bc5 {160}
50. Ke5 {[%emt 0:00:53]} Ra3 {87} 51. Rf6+ {[%emt 0:00:13]} Kh5 {376} 52. Rf4 {
[%emt 0:00:10]} Kg6 {[%emt 0:00:08]} 53. Rg4+ {[%emt 0:00:34]} Kh7 {[%emt 0:00:
31]} 54. Be4+ {62} Kh8 {[%emt 0:00:08]} 55. Rg6 {[%emt 0:00:13]} h5 {103} 56.
Rc6 {[%emt 0:00:18]} Bf8 {548} 57. Kf6 {[%emt 0:00:41]} Kg8 {[%emt 0:00:06]}
58. Bd5+ {[%emt 0:00:52]} Kh7 {[%emt 0:00:05]} 59. Kf7 {[%emt 0:00:51]} 1-0

[Event "77th Tata Steel Chess Masters"]
[Site "Wijk aan Zee"]
[Date "2015.01.18"]
[Round "8"]
[White "Van Wely, Loek"]
[Black "Caruana, Fabiano"]
[Result "0-1"]
[ECO "A48"]
[WhiteElo "2667"]
[BlackElo "2820"]
[PlyCount "162"]
[EventDate "2015.??.??"]
[EventCountry "NED"]
[TimeControl "40/6000+30:20/3000+30:900+30"]

1. d4 {[%emt 0:00:00]} Nf6 {[%emt 0:00:00]} 2. Nf3 {[%emt 0:00:00]} g6 {[%emt
0:00:00]} 3. Nbd2 {[%emt 0:00:00]} c5 {78} 4. dxc5 {[%emt 0:00:15]} Qa5 {170}
5. a3 {[%emt 0:00:23]} Qxc5 {[%emt 0:00:12]} 6. b4 {[%emt 0:00:08]} Qc7 {243}
7. Bb2 {108} Bg7 {138} 8. c4 {825} d6 {132} 9. g3 {131} b6 {515} 10. Bg2 {290}
Bb7 {[%emt 0:00:05]} 11. O-O {104} O-O {[%emt 0:00:26]} 12. e4 {1427} Nbd7 {
1087} 13. Qe2 {624} Rac8 {87} 14. Rac1 {246} Qb8 {163} 15. Ne1 {77} e6 {911}
16. Nd3 {79} Rfd8 {278} 17. Rfd1 {204} Qa8 {286} 18. f3 {112} Bc6 {118} 19. Nf1
{396} Qb8 {148} 20. Ne3 {124} Bb7 {[%emt 0:00:32]} 21. Rc2 {303} Ba6 {242} 22.
Qe1 {865} Bh6 {436} 23. Nf2 {179} Bg7 {229} 24. Nd3 {64} Re8 {124} 25. Qd2 {205
} Bh6 {460} 26. Nf2 {65} Bxc4 {184} 27. f4 {125} Bb3 {93} 28. Rxc8 {[%emt 0:00:
17]} Rxc8 {[%emt 0:00:04]} 29. Rb1 {[%emt 0:00:11]} e5 {270} 30. Nfg4 {[%emt 0:
00:17]} Bg7 {86} 31. fxe5 {123} dxe5 {[%emt 0:00:05]} 32. Bh3 {[%emt 0:00:51]}
Rd8 {113} 33. Qc3 {[%emt 0:00:39]} Ba2 {119} 34. Rd1 {64} Nxe4 {110} 35. Qc6 {
[%emt 0:00:14]} Ng5 {[%emt 0:00:49]} 36. Bg2 {[%emt 0:00:49]} Be6 {65} 37. h4 {
[%emt 0:00:14]} h5 {[%emt 0:00:16]} 38. hxg5 {[%emt 0:00:24]} hxg4 {[%emt 0:00:
03]} 39. Nd5 {[%emt 0:00:11]} Nf8 {75} 40. Rd2 {[%emt 0:00:00]} Rd7 {[%emt 0:
00:00]} 41. Nf6+ {760} Bxf6 {67} 42. Rxd7 {[%emt 0:00:03]} Nxd7 {134} 43. gxf6
{[%emt 0:00:06]} Nxf6 {201} 44. Qb5 {165} Nd7 {[%emt 0:00:21]} 45. Bc6 {[%emt
0:00:09]} e4 {78} 46. Kg2 {468} Qd6 {77} 47. Bxd7 {[%emt 0:00:19]} Qd2+ {169}
48. Kh1 {343} Qd1+ {322} 49. Kh2 {[%emt 0:00:25]} Qc2+ {[%emt 0:00:12]} 50. Kg1
{[%emt 0:00:19]} Qb1+ {86} 51. Qf1 {[%emt 0:00:08]} Qxb2 {95} 52. Bxe6 {[%emt
0:00:07]} Qd4+ {224} 53. Kh2 {173} fxe6 {[%emt 0:00:44]} 54. Qf4 {[%emt 0:00:
12]} Qb2+ {[%emt 0:00:26]} 55. Kg1 {92} Qb1+ {[%emt 0:00:04]} 56. Kh2 {162}
Qc2+ {[%emt 0:00:06]} 57. Kg1 {[%emt 0:00:08]} Qd1+ {[%emt 0:00:05]} 58. Kh2 {
[%emt 0:00:07]} Qe2+ {[%emt 0:00:30]} 59. Kg1 {[%emt 0:00:09]} Qf3 {[%emt 0:00:
32]} 60. Qb8+ {[%emt 0:00:00]} Kf7 {[%emt 0:00:00]} 61. Qxa7+ {640} Kf6 {[%emt
0:00:21]} 62. Qxb6 {186} Qxg3+ {[%emt 0:00:20]} 63. Kh1 {172} Qh3+ {70} 64. Kg1
{[%emt 0:00:13]} g3 {[%emt 0:00:19]} 65. Qd4+ {233} Kf5 {543} 66. Qd2 {228} Qh8
{598} 67. a4 {217} Qa1+ {249} 68. Kg2 {[%emt 0:00:05]} Qxa4 {161} 69. Kxg3 {
[%emt 0:00:17]} Qb3+ {96} 70. Kh4 {[%emt 0:00:07]} e3 {118} 71. Qd4 {[%emt 0:
00:29]} Qc2 {60} 72. Qg4+ {[%emt 0:00:56]} Ke5 {70} 73. Qg3+ {348} Kd4 {[%emt
0:00:12]} 74. Qd6+ {[%emt 0:00:35]} Kc3 {102} 75. Qc5+ {437} Kd2 {[%emt 0:00:
21]} 76. Qd4+ {79} Qd3 {[%emt 0:00:39]} 77. Qb2+ {[%emt 0:00:33]} Ke1 {[%emt 0:
00:27]} 78. b5 {74} e2 {[%emt 0:00:43]} 79. Qc1+ {[%emt 0:00:40]} Kf2 {[%emt 0:
00:20]} 80. Qf4+ {[%emt 0:00:08]} Qf3 {[%emt 0:00:20]} 81. Qd4+ {107} Kg2 {
[%emt 0:00:10]} 0-1